Workbook

Sheet 1(定)
A1: 附件1
A2: 2019年全区棚户区改造开工情况通报表 （截至2019年6月25日） | R2: 今年新开工
A3: 任务 城市 | B3: 2019年度国家目标任务 | K3: 2019年自治区新增任务 | O3: 任务 城市 | P3: 2019年国家 | Q3: 2018自治区新增 | R3: 2019年国家 | S3: 2018自治区新增 | T3: 2019年国家储备 | U3: 2019自治区新增 | V3: 2019国家储备 | W3: 2018年开工底数(2018年自治区新增)
B4: 年度目标责任套（户）数 | C4: 总改造套数 | D4: 总改造完成率 | E4: 其中：2019年国家下达责任目标任务（含2018年自治区新增任务结转） | H4: 其中：2019年国家储备 | K4: 城市棚户区改造完成情况
E5: 目标责任套数 | F5: 改造户数 | G5: 改造完成率 | H5: 目标责任套数 | I5: 改造户数 | J5: 改造完成率 | K5: 目标任务套数 | L5: 改造户数 | M5: 改造完成率
A7: 编号栏 | B7: 1=4+7 | C7: 2=5+8 | D7: 3=2/1 | E7: 4 | F7: 5 | G7: 6=5/4 | H7: 7 | I7: 8 | J7: 9=8/7 | K7: 10 | L7: 11 | M7: 12=11/10 | O7: 编号栏 | P7: / | Q7: /
A8: 国家任务 | B8: 120000 | C8: =SUM(C10:C25) -> 66108 | D8: =C8/B8 -> 55.09% | E8: 120000 | F8: =SUM(F10:F25) -> 61356 | G8: =F8/E8 -> 51.13% | H8: - | I8: - | J8: - | K8: - | L8: - | M8: - | O8: 国家任务 | P8: / | Q8: /
A9: 自治区任务数 | B9: =SUM(B10:B25) -> 153742 | C9: 66108 | D9: 43.00% | E9: =SUM(E10:E23) -> 123613 | F9: 61356 | G9: 49.64% | H9: =SUM(H10:H25) -> 24756 | I9: 4752 | J9: =I9/H9 -> 19.20% | K9: 99690 | L9: 1219 | M9: =L9/K9 -> 1.22% | O9: 自治区任务数 | P9: =SUM(P10:P23) -> 22622 | Q9: =SUM(Q10:Q23) -> 23803 | W9: =SUM(W10:W23) -> 23572
A10: 南宁市 | B10: =E10+H10 -> 9050 | C10: =F10+I10 -> 4708 | D10: 52.02% | E10: 7051 | F10: 4078 | G10: 57.84% | H10: 1999 | I10: 630 | J10: 31.52% | K10: 8773 | L10: 0 | M10: 0.00% | O10: 南宁市 | P10: 1553 | Q10: 2525 | R10: 1417 | S10: 2525 | T10: 0 | U10: 0 | V10: 630 | W10: 2525 | Z10: 南宁市 汇总 | AA10: 2183 | AB10: 南宁市 汇总 | AC10: 2525 | AE10: =AA10+AC10-C10 -> 0
A11: 柳州市 | B11: =E11 -> 11061 | C11: =F11 -> 5646 | D11: 51.04% | E11: 11061 | F11: 5646 | G11: 51.04% | H11: - | I11: - | J11: - | K11: 11020 | L11: 0 | M11: 0.00% | O11: 柳州市 | P11: 3359 | Q11: 2252 | R11: 1989 | S11: 0 | T11: - | U11: 500 | V11: - | W11: 2252 | Z11: 柳州市 汇总 | AA11: 3359 | AB11: 柳州市 汇总 | AC11: 2252 | AE11: -35
A12: 桂林市 | B12: 5984 | C12: 4622 | D12: 77.24% | E12: 5984 | F12: =P12+Q12+310 -> 4622 | G12: 77.24% | H12: - | I12: - | J12: - | K12: 4850 | L12: 0 | M12: 0.00% | O12: 桂林市 | P12: 1943 | Q12: 2369 | R12: 96 | S12: 0 | T12: - | U12: 0 | V12: - | W12: 2369 | Z12: 桂林市 汇总 | AA12: 1943 | AB12: 桂林市 汇总 | AC12: 2369 | AE12: -310
A13: 梧州市 | B13: =E13+H13 -> 4099 | C13: =F13+I13 -> 1096 | D13: 26.74% | E13: 3766 | F13: =P13+Q13 -> 1081 | G13: 28.70% | H13: 333 | I13: 15 | J13: 4.50% | K13: 8402 | L13: 55 | M13: 0.65% | O13: 梧州市 | P13: 0 | Q13: 1081 | R13: 303 | S13: 877 | T13: 333 | U13: 0 | V13: 15 | W13: 0 | X13: 藤县藤州镇（田寮片区）棚户区改造工程项目（二期）Ⅱ阶段-2019国家 | Z13: 梧州市 汇总 | AA13: 15 | AB13: 梧州市 汇总 | AC13: 877 | AE13: -204
A14: 北海市 | B14: 241 | C14: 241 | D14: 100.00% | E14: 241 | F14: 241 | G14: 100.00% | H14: - | I14: - | J14: - | K14: 439 | L14: 0 | M14: 0.00% | O14: 北海市 | P14: 0 | Q14: 241 | R14: 0 | S14: 0 | T14: - | U14: 0 | V14: - | W14: 241 | AB14: 北海市 汇总 | AC14: 241 | AE14: 0
A15: 防城港市 | B15: 1514 | C15: 420 | D15: 27.74% | E15: 1514 | F15: 420 | G15: 27.74% | H15: - | I15: - | J15: - | K15: 1541 | L15: 0 | M15: 0.00% | O15: 防城港市 | P15: 60 | Q15: 0 | R15: 0 | S15: / | T15: - | U15: 0 | V15: - | Z15: 防城港市 汇总 | AA15: 60 | AE15: -360
A16: 钦州市 | B16: =E16+H16 -> 8700 | C16: =F16+I16 -> 601 | D16: 6.91% | E16: 6791 | F16: 601 | G16: 8.85% | H16: 1909 | I16: 0 | J16: =I16/H16 -> 0.00% | K16: 3141 | L16: 0 | M16: 0.00% | O16: 钦州市 | P16: 316 | Q16: 285 | R16: 228 | S16: 8 | T16: 0 | U16: 0 | V16: 0 | W16: 188 | Z16: 钦州市 汇总 | AA16: 316 | AB16: 钦州市 汇总 | AC16: 285 | AE16: 0
A17: 贵港市 | B17: =E17 -> 2848 | C17: =F17 -> 2295 | D17: 80.58% | E17: 2848 | F17: =P17+Q17+103 -> 2295 | G17: 80.58% | H17: - | I17: - | J17: - | K17: 4952 | L17: 0 | M17: 0.00% | O17: 贵港市 | P17: 0 | Q17: 2192 | R17: 0 | S17: 2192 | T17: - | U17: 0 | V17: - | W17: 2152 | Z17: 贵港市 汇总 | AA17: 0 | AB17: 贵港市 汇总 | AC17: 2192 | AE17: -103
A18: 玉林市 | B18: 6178 | C18: 670 | D18: 10.84% | E18: 6178 | F18: =P18+Q18 -> 670 | G18: 10.84% | H18: - | I18: - | J18: - | K18: 2401 | L18: 0 | M18: 0.00% | O18: 玉林市 | P18: 0 | Q18: 670 | R18: 未入库 | S18: 0 | T18: - | U18: 未入库 | V18: - | W18: 670 | AB18: 玉林市 汇总 | AC18: 670 | AE18: 0
A19: 百色市 | B19: 53472 | C19: 17453 | D19: 32.64% | E19: 44714 | F19: 17453 | G19: 39.03% | H19: 8758 | I19: =T19 -> 0 | J19: 0.00% | K19: 23036 | L19: 110 | M19: 0.48% | O19: 百色市 | P19: 6875 | Q19: 3307 | S19: 492 | T19: 0 | U19: 0 | W19: =14481-6827 -> 7654 | X19: 6827（为2018年盈余项目，转为2019年国家任务）+48 | Z19: 贺州市 汇总 | AA19: 5540 | AB19: 贺州市 汇总 | AC19: 3045 | AE19: =AC19+AA19-C20 -> 0
A20: 贺州市 | B20: 16740 | C20: 8585 | D20: 51.28% | E20: 12303 | F20: 7590 | G20: 61.69% | H20: 4437 | I20: 995 | J20: 22.43% | K20: 15124 | L20: 1054 | M20: 6.97% | O20: 贺州市 | P20: 4545 | Q20: 3045 | R20: 3264 | S20: 650 | T20: 313 | U20: 968 | V20: 995 | W20: 1685 | Z20: 河池市 汇总 | AA20: 110 | AB20: 河池市 汇总 | AC20: 609 | AE20: 0
A21: 河池市 | B21: 3855 | C21: 719 | D21: 18.65% | E21: 3855 | F21: 719 | G21: 18.65% | H21: - | I21: - | J21: - | K21: 956 | L21: 0 | M21: 0.00% | O21: 河池市 | P21: 110 | Q21: 609 | R21: 0 | S21: 0 | T21: - | U21: 0 | V21: - | W21: 609 | Z21: 来宾市 汇总 | AA21: 0 | AB21: 来宾市 汇总 | AC21: 1208 | AE21: -1479
A22: 来宾市 | B22: =E22+H22 -> 6657 | C22: =F22+I22 -> 2687 | D22: 40.36% | E22: 5995 | F22: 2687 | G22: 44.82% | H22: 662 | I22: 0 | J22: =I22/H22 -> 0.00% | K22: 3506 | L22: 0 | M22: 0.00% | O22: 来宾市 | P22: 0 | Q22: 1208 | R22: 0 | S22: 300 | T22: 未入库 | U22: 0 | V22: - | W22: 308 | Z22: 崇左市 汇总 | AA22: 4261 | AB22: 崇左市 汇总 | AC22: 4019 | AE22: 0
A23: 崇左市 | B23: =E23+H23 -> 15258 | C23: =F23+I23 -> 8280 | D23: 54.27% | E23: 11312 | F23: =P23+Q23 -> 7880 | G23: 69.66% | H23: 3946 | I23: 400 | J23: 10.14% | K23: 9114 | L23: 0 | M23: 0.00% | O23: 崇左市 | P23: 3861 | Q23: 4019 | R23: 2699 | S23: 1100 | T23: 400 | U23: 0 | V23: 400 | W23: 2919
A24: 区直危旧房改造 | B24: 5373 | C24: 5373 | D24: 100.00% | E24: 5373 | F24: 5373 | G24: 100.00% | H24: - | I24: - | J24: - | K24: - | L24: - | M24: -
A25: 南宁危旧房改造 | B25: =H25 -> 2712 | C25: =I25 -> 2712 | D25: 100.00% | E25: - | F25: - | G25: - | H25: 2712 | I25: 2712 | J25: 100.00% | K25: 2435 | M25: =L25/K25 -> 0.00% | O25: 南宁危旧房改造
